[Event "46th OKU-C 2019"]
[Site "Utrecht"]
[Date "2019.06.02"]
[Round "5.1"]
[White "Li-Behn, Tobias"]
[Black "Van Egmond, Tom"]
[Result "0-1"]
[ECO "B32"]
[WhiteElo "1237"]
[BlackElo "1492"]
[Annotator "NA"]
[PlyCount "88"]
[EventDate "2019.05.31"]
[EventType "swiss"]
[EventCountry "NED"]
[SourceTitle "playchess.com"]
[Source "ChessBase"]
[SourceQuality "1"]
[TimeControl "6600+10"]

1. d4 {[%emt 0:00:00]} c5 {[%emt 0:00:11]} 2. dxc5 {[%emt 0:00:36]} Nc6 {[%emt 0:00:18]} 3. Nf3 {[%emt 0:01:51]} e5 {[%emt 0:00:11]} 4. e4 {[%emt 0:00:20]} Bxc5 {[%emt 0:00:13]} 5. c3 {[%emt 0:00:40]} Nf6 {[%emt 0:00:29]} 6. Bd3 {[%emt 0:00:15]} h6 {[%emt 0:03:15]} 7. h3 {[%emt 0:02:23]} O-O {[%emt 0:00:11]} 8. O-O {[%emt 0:00:10]} d6 {[%emt 0:01:17]} 9. Nbd2 {[%emt 0:01:16]} Be6 {[%emt 0:08:00]} 10. b4 {[%emt 0:02:16]} Bb6 {[%emt 0:00:45]} 11. Qe2 {[%emt 0:01:54]} Nh5 {[%emt 0:06:41]} 12. Nc4 {[%emt 0:02:21]} Ng3 {[%emt 0:00:26]} 13. Qc2 {[%emt 0:02:39]} Nxf1 {[%emt 0:00:18]} 14. Kxf1 {[%emt 0:00:10]} Qf6 {[%emt 0:07:27]} 15. Nxb6 {[%emt 0:02:39]} axb6 {[%emt 0:00:19]} 16. a4 {[%emt 0:00:32]} Bxh3 {[%emt 0:00:24]} 17. Ng1 {[%emt 0:01:12]} Bd7 {[%emt 0:04:13]} 18. Be3 {[%emt 0:00:20]} d5 {[%emt 0:09:15]} 19. b5 {[%emt 0:04:14]} dxe4 {[%emt 0:01:24]} 20. Bxe4 {[%emt 0:00:23]} Nd8 {[%emt 0:01:37]} 21. c4 {[%emt 0:01:06]} Kh8 {[%emt 0:05:08]} 22. Ne2 {[%emt 0:03:33]} Be6 {[%emt 0:04:45]} 23. Bxb6 {[%emt 0:03:28]} Bxc4 {[%emt 0:00:25]} 24. Bxd8 {[%emt 0:00:22]} Bxe2+ {[%emt 0:00:05]} 25. Qxe2 {[%emt 0:00:56]} Rfxd8 {[%emt 0:01:42]} 26. Bxb7 {[%emt 0:00:32]} e4 {[%emt 0:01:17]} 27. Ra2 {[%emt 0:01:23]} Qh4 {[%emt 0:00:16]} 28. Kg1 {[%emt 0:01:11]} Ra7 {[%emt 0:00:55]} 29. Bc6 {[%emt 0:04:17]} e3 {[%emt 0:10:32]} 30. g3 {[%emt 0:05:38]} exf2+ {[%emt 0:00:25]} 31. Kxf2 {[%emt 0:00:15]} Qd4+ {[%emt 0:07:17]} 32. Qe3 {[%emt 0:02:42]} Rxa4 {[%emt 0:00:20]} 33. Re2 {[%emt 0:05:38]} Qxe3+ {[%emt 0:03:31]} 34. Rxe3 {[%emt 0:00:03]} Rb4 {[%emt 0:03:22]} 35. Re7 {[%emt 0:02:56]} Kg8 {[%emt 0:00:00]} 36. Rb7 {[%emt 0:01:11]} g6 {[%emt 0:00:00]} 37. Kf3 {[%emt 0:00:27]} Kg7 {[%emt 0:00:00]} 38. Re7 {[%emt 0:01:36]} Rd3+ {[%emt 0:00:57]} 39. Kg2 {[%emt 0:00:44]} Rd2+ {[%emt 0:00:29]} 40. Kf3 {[%emt 0:00:51]} Rdb2 {[%emt 0:00:28]} 41. Re5 {[%emt 0:00:14]} Kf6 {[%emt 0:00:26]} 42. Rd5 {[%emt 0:00:09]} h5 {[%emt 0:01:24]} 43. Rd6+ {[%emt 0:02:44]} Ke5 {[%emt 0:00:08]} 44. Rd7 {[%emt 0:00:42]} R4b3+ {[%emt 0:00:01]} 0-1

[Event "46th OKU-C 2019"]
[Site "Utrecht"]
[Date "2019.06.02"]
[Round "5.2"]
[White "Van Essen, Marieke"]
[Black "Van den Akker, Bart"]
[Result "1-0"]
[ECO "C55"]
[WhiteElo "1553"]
[BlackElo "1503"]
[Annotator "NA"]
[PlyCount "73"]
[EventDate "2019.05.31"]
[EventType "swiss"]
[EventCountry "NED"]
[SourceTitle "playchess.com"]
[Source "ChessBase"]
[SourceQuality "1"]
[TimeControl "6600+10"]

1. e4 {[%emt 0:00:00]} e5 {[%emt 0:00:01]} 2. Nf3 {[%emt 0:00:00]} Nc6 {[%emt 0:00:08]} 3. Bc4 {[%emt 0:00:00]} Be7 {[%emt 0:00:28]} 4. Nc3 {[%emt 0:00:19]} d6 {[%emt 0:00:52]} 5. h3 {[%emt 0:00:04]} Nf6 {[%emt 0:00:44]} 6. O-O {[%emt 0:03:01]} O-O {[%emt 0:00:13]} 7. Re1 {[%emt 0:00:08]} b6 {[%emt 0:02:57]} 8. d4 {[%emt 0:02:05]} exd4 {[%emt 0:01:05]} 9. Nxd4 {[%emt 0:00:16]} Nxd4 {[%emt 0:03:43]} 10. Qxd4 {[%emt 0:00:10]} Bb7 {[%emt 0:01:31]} 11. Bf4 {[%emt 0:02:05]} a6 {[%emt 0:26:46]} 12. a4 {[%emt 0:04:08]} c5 {[%emt 0:01:53]} 13. Qe3 {[%emt 0:02:25]} Qd7 {[%emt 0:10:49]} 14. Rad1 {[%emt 0:02:32]} Qc6 {[%emt 0:04:01]} 15. Bd5 {[%emt 0:01:18]} Qc7 {[%emt 0:01:18]} 16. Bxb7 {[%emt 0:02:44]} Qxb7 {[%emt 0:00:18]} 17. Bxd6 {[%emt 0:00:22]} Ne8 {[%emt 0:02:41]} 18. Bxe7 {[%emt 0:02:03]} Qxe7 {[%emt 0:00:30]} 19. Nd5 {[%emt 0:00:03]} Qb7 {[%emt 0:01:40]} 20. Qg3 {[%emt 0:03:32]} Kh8 {[%emt 0:07:18]} 21. Qe5 {[%emt 0:13:19]} Ra7 {[%emt 0:04:02]} 22. Rd3 {[%emt 0:03:21]} f6 {[%emt 0:03:53]} 23. Qe6 {[%emt 0:02:01]} b5 {[%emt 0:00:14]} 24. a5 {[%emt 0:05:23]} Qf7 {[%emt 0:02:43]} 25. Qxf7 {[%emt 0:11:17]} Raxf7 {[%emt 0:00:08]} 26. Nb6 {[%emt 0:00:55]} Rc7 {[%emt 0:04:01]} 27. Rd8 {[%emt 0:01:03]} Rg8 {[%emt 0:02:43]} 28. Red1 {[%emt 0:01:48]} Ra7 {[%emt 0:02:44]} 29. Rc8 {[%emt 0:01:58]} Re7 {[%emt 0:04:45]} 30. f3 {[%emt 0:01:32]} c4 {[%emt 0:01:12]} 31. Rdd8 {[%emt 0:00:16]} f5 {[%emt 0:06:01]} 32. Nd5 {[%emt 0:00:34]} Re5 {[%emt 0:01:14]} 33. Nc7 {[%emt 0:00:26]} Nf6 {[%emt 0:01:00]} 34. Rxg8+ {[%emt 0:01:20]} Nxg8 {[%emt 0:00:12]} 35. Nxa6 {[%emt 0:00:26]} b4 {[%emt 0:01:44]} 36. exf5 {[%emt 0:01:15]} Rxa5 {[%emt 0:00:47]} 37. Nxb4 {[%emt 0:00:08]} 1-0

[Event "46th OKU-C 2019"]
[Site "Utrecht"]
[Date "2019.06.02"]
[Round "5.3"]
[White "Schonewille, Midas"]
[Black "Van Duijl, Henri"]
[Result "0-1"]
[ECO "A80"]
[WhiteElo "1506"]
[BlackElo "1495"]
[Annotator "NA"]
[PlyCount "66"]
[EventDate "2019.05.31"]
[EventType "swiss"]
[EventCountry "NED"]
[SourceTitle "playchess.com"]
[Source "ChessBase"]
[SourceQuality "1"]
[TimeControl "6600+10"]

1. d4 {[%emt 0:04:38]} f5 {[%emt 0:00:05]} 2. Nc3 {[%emt 0:01:04]} Nf6 {[%emt 0:01:46]} 3. Bg5 {[%emt 0:00:49]} e6 {[%emt 0:03:33]} 4. a3 {[%emt 0:04:07]} Be7 {[%emt 0:01:42]} 5. Bxf6 {[%emt 0:01:14]} Bxf6 {[%emt 0:00:29]} 6. e3 {[%emt 0:00:55]} Qe7 {[%emt 0:02:27]} 7. Bc4 {[%emt 0:06:52]} d5 {[%emt 0:10:12]} 8. Bd3 {[%emt 0:01:37]} c6 {[%emt 0:04:16]} 9. Qd2 {[%emt 0:04:31]} Nd7 {[%emt 0:02:55]} 10. O-O-O {[%emt 0:01:08]} Nb6 {[%emt 0:00:07]} 11. Nce2 {[%emt 0:05:19]} Bd7 {[%emt 0:02:57]} 12. Nf3 {[%emt 0:03:39]} O-O-O {[%emt 0:07:17]} 13. Kb1 {[%emt 0:04:37]} Kb8 {[%emt 0:03:03]} 14. Nc1 {[%emt 0:06:19]} c5 {[%emt 0:14:25]} 15. dxc5 {[%emt 0:05:55]} Qxc5 {[%emt 0:03:31]} 16. Nb3 {[%emt 0:00:37]} Qc7 {[%emt 0:02:36]} 17. Nfd4 {[%emt 0:02:37]} Nc4 {[%emt 0:07:05]} 18. Qe2 {[%emt 0:06:24]} Rc8 {[%emt 0:03:09]} 19. Rc1 {[%emt 0:07:18]} Qb6 {[%emt 0:02:32]} 20. Rhd1 {[%emt 0:06:15]} Rhe8 {[%emt 0:04:43]} 21. Ka2 {[%emt 0:05:34]} g6 {[%emt 0:03:39]} 22. f4 {[%emt 0:01:58]} Ba4 {[%emt 0:07:18]} 23. Bxc4 {[%emt 0:04:03]} dxc4 {[%emt 0:06:25]} 24. Nd2 {[%emt 0:03:48]} c3 {[%emt 0:02:58]} 25. N2b3 {[%emt 0:02:57]} cxb2 {[%emt 0:01:09]} 26. Kxb2 {[%emt 0:00:47]} Bxb3 {[%emt 0:01:35]} 27. cxb3 {[%emt 0:00:31]} Rxc1 {[%emt 0:01:35]} 28. Kxc1 {[%emt 0:00:20]} Bxd4 {[%emt 0:02:06]} 29. exd4 {[%emt 0:02:55]} Qxb3 {[%emt 0:00:21]} 30. Rd3 {[%emt 0:00:22]} Rc8+ {[%emt 0:00:28]} 31. Kd2 {[%emt 0:00:33]} Rc2+ {[%emt 0:01:14]} 32. Ke3 {[%emt 0:01:33]} Rxe2+ {[%emt 0:00:43]} 33. Kxe2 {[%emt 0:00:09]} Qd5 {[%emt 0:01:18]} 0-1

[Event "46th OKU-C 2019"]
[Site "Utrecht"]
[Date "2019.06.02"]
[Round "5.4"]
[White "Smits, Marc"]
[Black "Beaumont, Chris R"]
[Result "1/2-1/2"]
[ECO "B40"]
[WhiteElo "1570"]
[BlackElo "2264"]
[Annotator "ChessBase"]
[PlyCount "109"]
[EventDate "2019.05.31"]
[EventType "swiss"]
[EventCountry "NED"]
[SourceTitle "playchess.com"]
[Source "ChessBase"]
[SourceQuality "1"]
[TimeControl "6600+10"]

1. e4 {[%emt 0:11:42]} e6 {[%emt 0:00:05]} 2. Nf3 {[%emt 0:00:05]} c5 {[%emt 0:00:21]} 3. Be2 {[%emt 0:00:18]} Nc6 {[%emt 0:00:49]} 4. O-O {[%emt 0:05:29]} Be7 {[%emt 0:00:31]} 5. Nc3 {[%emt 0:01:39]} Nf6 {[%emt 0:00:52]} 6. d3 {[%emt 0:01:08]} O-O {[%emt 0:00:15]} 7. e5 {[%emt 0:00:18]} Ne8 {[%emt 0:00:53]} 8. Ne4 {[%emt 0:00:59]} d5 {[%emt 0:00:19]} 9. Neg5 {[%emt 0:00:42]} h6 {[%emt 0:01:26]} 10. Nh3 {[%emt 0:00:34]} b5 {[%emt 0:00:27]} 11. Bd2 {[%emt 0:01:01]} Bb7 {[%emt 0:00:55]} 12. Qc1 {[%emt 0:00:32]} Kh7 {[%emt 0:01:05]} 13. d4 {[%emt 0:09:52]} g5 {[%emt 0:02:44]} 14. Bd3+ {[%emt 0:03:37]} Kh8 {[%emt 0:00:36]} 15. Bxg5 {[%emt 0:05:13]} hxg5 {[%emt 0:00:49]} 16. Nfxg5 {[%emt 0:00:11]} Kg7 {[%emt 0:00:41]} 17. Qf4 {[%emt 0:03:18]} Bxg5 {[%emt 0:01:36]} 18. Nxg5 {[%emt 0:02:02]} Qe7 {[%emt 0:00:43]} 19. Qg3 {[%emt 0:00:54]} f6 {[%emt 0:02:08]} 20. Nh3+ {[%emt 0:06:36]} Kh8 {[%emt 0:00:29]} 21. Qh4+ {[%emt 0:01:11]} Kg8 {[%emt 0:00:17]} 22. Nf4 {[%emt 0:03:50]} fxe5 {[%emt 0:02:22]} 23. Qxe7 {[%emt 0:00:19]} Nxe7 {[%emt 0:00:22]} 24. Nxe6 {[%emt 0:00:15]} Rf6 {[%emt 0:00:55]} 25. Nxc5 {[%emt 0:00:12]} Bc6 {[%emt 0:01:07]} 26. dxe5 {[%emt 0:00:12]} Rh6 {[%emt 0:00:35]} 27. f4 {[%emt 0:00:56]} Nc7 {[%emt 0:01:38]} 28. f5 {[%emt 0:03:54]} Kf7 {[%emt 0:00:11]} 29. Rae1 {[%emt 0:06:07]} Rah8 {[%emt 0:01:33]} 30. h3 {[%emt 0:05:32]} Rg8 {[%emt 0:00:20]} 31. f6 {[%emt 0:01:02]} d4 {[%emt 0:01:14]} 32. Rf2 {[%emt 0:03:02]} Ne6 {[%emt 0:00:58]} 33. fxe7+ {[%emt 0:01:47]} Kxe7 {[%emt 0:00:08]} 34. Nxe6 {[%emt 0:01:05]} Kxe6 {[%emt 0:00:12]} 35. Bf5+ {[%emt 0:00:58]} Ke7 {[%emt 0:00:20]} 36. Rd1 {[%emt 0:01:56]} Rh4 {[%emt 0:00:56]} 37. Bg4 {[%emt 0:06:14]} Bd7 {[%emt 0:00:47]} 38. Bxd7 {[%emt 0:02:59]} Kxd7 {[%emt 0:00:07]} 39. Rd3 {[%emt 0:01:44]} Ke6 {[%emt 0:00:16]} 40. Rf6+ {[%emt 0:01:19]} Kxe5 {[%emt 0:00:12]} 41. Rf7 {[%emt 0:00:05]} a6 {[%emt 0:00:54]} 42. Ra7 {[%emt 0:00:55]} Rg6 {[%emt 0:00:10]} 43. Ra3 {[%emt 0:00:55]} Re4 {[%emt 0:00:15]} 44. R7xa6 {[%emt 0:00:26]} Rg5 {[%emt 0:00:19]} 45. Rb6 {[%emt 0:00:23]} Re1+ {[%emt 0:00:37]} 46. Kf2 {[%emt 0:00:11]} Rc1 {[%emt 0:00:14]} 47. Rxb5+ {[%emt 0:00:07]} Kf6 {[%emt 0:00:15]} 48. Rxg5 {[%emt 0:00:47]} Kxg5 {[%emt 0:00:12]} 49. Ke2 {[%emt 0:01:07]} Rxc2+ {[%emt 0:00:15]} 50. Kd3 {[%emt 0:00:08]} Rxg2 {[%emt 0:00:15]} 51. b4 {[%emt 0:00:14]} Rg3+ {[%emt 0:00:12]} 52. Kxd4 {[%emt 0:00:19]} Rxa3 {[%emt 0:00:09]} 53. b5 {[%emt 0:00:41]} Rxa2 {[%emt 0:00:07]} 54. b6 {[%emt 0:01:02]} Rb2 {[%emt 0:00:13]} 55. Kc5 {[%emt 0:00:08]} 1/2-1/2

[Event "46th OKU-C 2019"]
[Site "Utrecht"]
[Date "2019.06.02"]
[Round "6.1"]
[White "Van Egmond, Tom"]
[Black "Van Essen, Marieke"]
[Result "1/2-1/2"]
[ECO "D92"]
[WhiteElo "1492"]
[BlackElo "1553"]
[Annotator "NA"]
[PlyCount "100"]
[EventDate "2019.05.31"]
[EventType "swiss"]
[EventCountry "NED"]
[SourceTitle "playchess.com"]
[Source "ChessBase"]
[SourceQuality "1"]
[TimeControl "6600+10"]

1. Nf3 {[%emt 0:00:00]} Nf6 {[%emt 0:00:03]} 2. c4 {[%emt 0:00:08]} d5 {[%emt 0:01:08]} 3. d4 {[%emt 0:06:33]} g6 {[%emt 0:00:49]} 4. Nc3 {[%emt 0:00:17]} Bg7 {[%emt 0:00:43]} 5. Bf4 {[%emt 0:01:09]} Nc6 {[%emt 0:04:06]} 6. e3 {[%emt 0:01:32]} O-O {[%emt 0:03:58]} 7. Be2 {[%emt 0:00:36]} e6 {[%emt 0:00:56]} 8. O-O {[%emt 0:00:31]} b6 {[%emt 0:07:39]} 9. Nb5 {[%emt 0:02:01]} a6 {[%emt 0:02:41]} 10. Nc3 {[%emt 0:02:39]} Bb7 {[%emt 0:05:19]} 11. h3 {[%emt 0:01:28]} Ne7 {[%emt 0:03:54]} 12. b4 {[%emt 0:04:16]} dxc4 {[%emt 0:04:08]} 13. Bxc4 {[%emt 0:01:26]} Nfd5 {[%emt 0:00:44]} 14. Nxd5 {[%emt 0:01:03]} Nxd5 {[%emt 0:01:31]} 15. Bxd5 {[%emt 0:00:52]} Bxd5 {[%emt 0:00:46]} 16. Re1 {[%emt 0:01:05]} f5 {[%emt 0:03:56]} 17. a3 {[%emt 0:03:14]} c5 {[%emt 0:05:23]} 18. Rc1 {[%emt 0:04:52]} c4 {[%emt 0:01:57]} 19. Nd2 {[%emt 0:00:23]} b5 {[%emt 0:00:47]} 20. Nb1 {[%emt 0:00:59]} Qh4 {[%emt 0:06:53]} 21. Nd2 {[%emt 0:03:53]} Qd8 {[%emt 0:02:08]} 22. Nb1 {[%emt 0:00:30]} Qb6 {[%emt 0:07:59]} 23. f3 {[%emt 0:06:14]} Rfe8 {[%emt 0:01:50]} 24. Bg3 {[%emt 0:05:20]} g5 {[%emt 0:02:33]} 25. Bf2 {[%emt 0:10:12]} Qb7 {[%emt 0:02:51]} 26. Nc3 {[%emt 0:04:11]} a5 {[%emt 0:01:17]} 27. Ra1 {[%emt 0:04:30]} axb4 {[%emt 0:01:55]} 28. axb4 {[%emt 0:00:09]} Bf8 {[%emt 0:01:31]} 29. e4 {[%emt 0:02:00]} Bxb4 {[%emt 0:02:48]} 30. exd5 {[%emt 0:06:12]} Bxc3 {[%emt 0:00:56]} 31. Rxa8 {[%emt 0:00:08]} Rxa8 {[%emt 0:00:18]} 32. Qe2 {[%emt 0:04:20]} Bxe1 {[%emt 0:01:19]} 33. Qxe6+ {[%emt 0:00:07]} Qf7 {[%emt 0:00:04]} 34. Bxe1 {[%emt 0:00:10]} Qxe6 {[%emt 0:02:35]} 35. dxe6 {[%emt 0:00:02]} Ra4 {[%emt 0:02:17]} 36. d5 {[%emt 0:00:45]} Kf8 {[%emt 0:01:09]} 37. d6 {[%emt 0:00:44]} Ke8 {[%emt 0:03:00]} 38. Bc3 {[%emt 0:00:18]} Ra7 {[%emt 0:02:07]} 39. d7+ {[%emt 0:01:07]} Rxd7 40. exd7+ {[%emt 0:00:11]} Kxd7 {[%emt 0:00:18]} 41. Kf2 {[%emt 0:00:10]} Kc6 {[%emt 0:00:18]} 42. Bb4 {[%emt 0:00:49]} Kd5 {[%emt 0:00:29]} 43. Ke2 {[%emt 0:00:29]} Kd4 {[%emt 0:00:56]} 44. Kd2 {[%emt 0:00:20]} f4 {[%emt 0:00:27]} 45. Be7 {[%emt 0:00:30]} c3+ {[%emt 0:02:54]} 46. Kc2 {[%emt 0:00:17]} Ke3 {[%emt 0:01:03]} 47. Kxc3 {[%emt 0:00:08]} Kf2 {[%emt 0:00:16]} 48. Bxg5 {[%emt 0:00:06]} Kxg2 {[%emt 0:00:13]} 49. Bxf4 {[%emt 0:00:06]} Kxf3 {[%emt 0:00:05]} 50. Be5 {[%emt 0:01:40]} Ke4 {[%emt 0:01:01]} 1/2-1/2

[Event "46th OKU-C 2019"]
[Site "Utrecht"]
[Date "2019.06.02"]
[Round "6.3"]
[White "Beaumont, Chris R"]
[Black "Li-Behn, Tobias"]
[Result "1/2-1/2"]
[ECO "D02"]
[WhiteElo "2264"]
[BlackElo "1237"]
[Annotator "ChessBase"]
[PlyCount "50"]
[EventDate "2019.05.31"]
[EventType "swiss"]
[EventCountry "NED"]
[SourceTitle "playchess.com"]
[Source "ChessBase"]
[SourceQuality "1"]
[TimeControl "6600+10"]

1. Nf3 {[%emt 0:00:00]} Nf6 {[%emt 0:00:00]} 2. g3 {[%emt 0:00:02]} g6 {[%emt 0:00:01]} 3. Bg2 {[%emt 0:00:10]} Bg7 {[%emt 0:00:06]} 4. O-O {[%emt 0:00:06]} O-O {[%emt 0:00:07]} 5. d4 {[%emt 0:00:04]} d5 {[%emt 0:00:01]} 6. c3 {[%emt 0:00:09]} c6 {[%emt 0:01:50]} 7. Nbd2 {[%emt 0:01:11]} Nbd7 {[%emt 0:00:28]} 8. b3 {[%emt 0:00:45]} b6 {[%emt 0:01:29]} 9. Bb2 {[%emt 0:01:27]} a5 {[%emt 0:00:19]} 10. a4 {[%emt 0:00:42]} Ba6 {[%emt 0:00:37]} 11. Re1 {[%emt 0:00:53]} Re8 {[%emt 0:00:05]} 12. e4 {[%emt 0:00:36]} dxe4 {[%emt 0:01:26]} 13. Nxe4 {[%emt 0:00:13]} Qc7 {[%emt 0:01:23]} 14. Rc1 {[%emt 0:02:29]} e5 {[%emt 0:01:53]} 15. Nxf6+ {[%emt 0:01:58]} Bxf6 {[%emt 0:00:05]} 16. dxe5 {[%emt 0:01:00]} Nxe5 {[%emt 0:01:38]} 17. Nxe5 {[%emt 0:00:37]} Bxe5 {[%emt 0:01:08]} 18. Qf3 {[%emt 0:00:09]} Bb7 {[%emt 0:01:21]} 19. Re3 {[%emt 0:01:11]} Bg7 {[%emt 0:00:19]} 20. h4 {[%emt 0:00:45]} Red8 {[%emt 0:01:30]} 21. Rc2 {[%emt 0:01:20]} Bh6 {[%emt 0:01:18]} 22. Re1 {[%emt 0:00:50]} Rab8 {[%emt 0:01:45]} 23. Qe2 {[%emt 0:00:47]} Qd7 {[%emt 0:02:40]} 24. Bc1 {[%emt 0:01:03]} Bxc1 {[%emt 0:05:08]} 25. Rexc1 {[%emt 0:00:18]} Re8 {[%emt 0:00:32]} 1/2-1/2